[Event "Titled Tuesday Blitz April 11 Early 2023"]
[White "Ljukin, Sergei"]
[Black "Kabilov, Amin"]
[WhiteFideId "14102200"]
[BlackFideId "14700859"]
[WhiteElo "2312"]
[BlackElo "2110"]
[Result "1-0"]
[Round "08"]
[TimeControl "180+2"]
[Date "2023.04.11"]
[WhiteClock "0:00:18"]
[BlackClock "0:00:03"]

1. e4 {[%clk 0:02:55]}  c5 {[%clk 0:02:57]} 2. Nf3 {[%clk 0:02:54]}  d6 {[%clk 0:02:58]} 3. d4 {[%clk 0:02:54]}  cxd4 {[%clk 0:02:58]} 4. Nxd4 {[%clk 0:02:55]}  Nf6 {[%clk 0:02:58]} 5. Nc3 {[%clk 0:02:55]}  a6 {[%clk 0:02:57]} 6. Bg5 {[%clk 0:02:55]}  e6 {[%clk 0:02:56]} 7. f4 {[%clk 0:02:55]}  Be7 {[%clk 0:02:57]} 8. Qf3 {[%clk 0:02:55]}  O-O {[%clk 0:02:55]} 9. O-O-O {[%clk 0:02:54]}  Qc7 {[%clk 0:02:55]} 10. g4 {[%clk 0:02:52]}  b5 {[%clk 0:02:53]} 11. a3 {[%clk 0:02:40]}  Bb7 {[%clk 0:02:30]} 12. Bh4 {[%clk 0:02:39]}  Nxe4 {[%clk 0:02:13]} 13. Nxe4 {[%clk 0:02:38]}  Bxh4 {[%clk 0:02:11]} 14. g5 {[%clk 0:02:34]}  Nd7 {[%clk 0:02:06]} 15. Bd3 {[%clk 0:02:29]}  Nc5 {[%clk 0:02:03]} 16. Kb1 {[%clk 0:02:28]}  f5 {[%clk 0:02:01]} 17. gxf6 {[%clk 0:02:24]}  Bxf6 {[%clk 0:02:00]} 18. Nxf6+ {[%clk 0:02:15]}  Rxf6 {[%clk 0:02:00]} 19. Qh5 {[%clk 0:02:09]}  g6 {[%clk 0:01:56]} 20. Qh4 {[%clk 0:02:05]}  Raf8 {[%clk 0:01:51]} 21. Rhf1 {[%clk 0:02:01]}  Nxd3 {[%clk 0:01:40]} 22. Rxd3 {[%clk 0:01:52]}  e5 {[%clk 0:01:34]} 23. Ne2 {[%clk 0:01:51]}  Be4 {[%clk 0:01:31]} 24. Rc3 {[%clk 0:01:50]}  Qf7 {[%clk 0:01:18]} 25. Re1 {[%clk 0:01:47]}  exf4 {[%clk 0:01:13]} 26. Nd4 {[%clk 0:01:45]}  d5 {[%clk 0:01:12]} 27. Nf3 {[%clk 0:01:37]}  Qg7 {[%clk 0:00:47]} 28. Ng5 {[%clk 0:01:04]}  Re8 {[%clk 0:00:32]} 29. Nxh7 {[%clk 0:00:49]}  Rf5 {[%clk 0:00:22]} 30. Ng5 {[%clk 0:00:49]}  f3 {[%clk 0:00:19]} 31. Nxf3 {[%clk 0:00:37]}  Qf6 {[%clk 0:00:10]} 32. Qxf6 {[%clk 0:00:28]}  Rxf6 {[%clk 0:00:11]} 33. Ree3 {[%clk 0:00:26]}  Ref8 {[%clk 0:00:08]} 34. Nd4 {[%clk 0:00:23]}  Rf1+ {[%clk 0:00:08]} 35. Ka2 {[%clk 0:00:23]}  R1f2 {[%clk 0:00:09]} 36. Rc6 {[%clk 0:00:21]}  Rxh2 {[%clk 0:00:08]} 37. Rxa6 {[%clk 0:00:20]}  Bxc2 {[%clk 0:00:06]} 38. Nxc2 {[%clk 0:00:19]}  Rxc2 {[%clk 0:00:06]} 39. Rxg6+ {[%clk 0:00:20]}  Kh7 {[%clk 0:00:06]} 40. Rg5 {[%clk 0:00:19]}  Rh2 {[%clk 0:00:05]} 41. Rxd5 {[%clk 0:00:18]}  Rff2 {[%clk 0:00:04]} 42. Rxb5 {[%clk 0:00:18]}  Kh6 {[%clk 0:00:04]} 43. Re6+ {[%clk 0:00:18]}  Kg7 {[%clk 0:00:03]} 44. Rb7+ {[%clk 0:00:18]}  Kf8 {[%clk 0:00:03]} 45. Ra6 {[%clk 0:00:18]}  Re2 {[%clk 0:00:03]} 46. Ra8+ {[%clk 0:00:18]}  Re8 {[%clk 0:00:03]} 47. Rxe8+ {[%clk 0:00:18]}  Kxe8 {[%clk 0:00:03]} 48. Rc7 {[%clk 0:00:19]}  Kd8 {[%clk 0:00:04]} 49. Rc1 {[%clk 0:00:19]}  Kd7 {[%clk 0:00:04]} 50. a4 {[%clk 0:00:19]}  Kd6 {[%clk 0:00:03]} 51. Ka3 {[%clk 0:00:19]}  Rh3+ {[%clk 0:00:04]} 52. b3 {[%clk 0:00:20]}  Rh5 {[%clk 0:00:03]} 53. Kb4 {[%clk 0:00:18]}  Rh4+ {[%clk 0:00:04]} 54. Rc4 {[%clk 0:00:19]}  Rh5 {[%clk 0:00:04]} 55. a5 {[%clk 0:00:19]}  Kd7 {[%clk 0:00:03]} 56. Ka4 {[%clk 0:00:19]}  Kd8 {[%clk 0:00:03]} 57. b4 {[%clk 0:00:19]}  Rh1 {[%clk 0:00:03]} 58. a6 {[%clk 0:00:17]}  Ra1+ {[%clk 0:00:02]} 59. Kb5 {[%clk 0:00:18]}  Ra2 {[%clk 0:00:03]} 60. Kb6 {[%clk 0:00:18]}  Ra3 {[%clk 0:00:03]} 61. Kb7 {[%clk 0:00:18]}  Kd7 {[%clk 0:00:03]} 62. a7 {[%clk 0:00:18]} 1-0


[Site "https://www.chess.com"]

[Event "Titled Tuesday Blitz April 11 Early 2023"]
[White "Marcziter, Dmitrii"]
[Black "Krsnik Cohar, Ivan Vihor"]
[WhiteFideId "13900765"]
[BlackFideId "14520044"]
[WhiteElo "2162"]
[BlackElo "2414"]
[Result "0-1"]
[Round "08"]
[TimeControl "180+2"]
[Date "2023.04.11"]
[WhiteClock "0:00:06"]
[BlackClock "0:01:08"]

1. d4 {[%clk 0:03:00]}  d5 {[%clk 0:02:56]} 2. c4 {[%clk 0:02:59]}  Bf5 {[%clk 0:02:57]} 3. Nc3 {[%clk 0:02:58]}  e6 {[%clk 0:02:57]} 4. Qb3 {[%clk 0:02:57]}  Nc6 {[%clk 0:02:57]} 5. Nf3 {[%clk 0:02:49]}  Nb4 {[%clk 0:02:53]} 6. e4 {[%clk 0:02:40]}  dxe4 {[%clk 0:02:54]} 7. a3 {[%clk 0:02:34]}  Nc6 {[%clk 0:02:52]} 8. d5 {[%clk 0:02:30]}  exf3 {[%clk 0:02:50]} 9. dxc6 {[%clk 0:02:28]}  bxc6 {[%clk 0:02:51]} 10. gxf3 {[%clk 0:02:23]}  Bc5 {[%clk 0:02:51]} 11. Qa4 {[%clk 0:02:15]}  Ne7 {[%clk 0:02:46]} 12. Bg5 {[%clk 0:02:03]}  f6 {[%clk 0:02:41]} 13. Be3 {[%clk 0:01:57]}  Bxe3 {[%clk 0:02:36]} 14. fxe3 {[%clk 0:01:57]}  Qd6 {[%clk 0:02:34]} 15. Rd1 {[%clk 0:01:56]}  Qe5 {[%clk 0:02:33]} 16. Kf2 {[%clk 0:01:54]}  O-O {[%clk 0:02:33]} 17. f4 {[%clk 0:01:44]}  Qc5 {[%clk 0:02:32]} 18. b4 {[%clk 0:01:42]}  Qb6 {[%clk 0:02:32]} 19. c5 {[%clk 0:01:41]}  Qb8 {[%clk 0:02:32]} 20. Rd7 {[%clk 0:01:39]}  Re8 {[%clk 0:02:22]} 21. e4 {[%clk 0:01:38]}  Bg6 {[%clk 0:02:19]} 22. Bc4 {[%clk 0:01:36]}  Bf7 {[%clk 0:02:19]} 23. Rhd1 {[%clk 0:01:35]}  a5 {[%clk 0:02:19]} 24. b5 {[%clk 0:01:30]}  cxb5 {[%clk 0:02:10]} 25. Nxb5 {[%clk 0:01:29]}  c6 {[%clk 0:01:44]} 26. Nc7 {[%clk 0:01:28]}  Ng6 {[%clk 0:01:33]} 27. f5 {[%clk 0:01:02]}  Nf8 {[%clk 0:01:31]} 28. Nxa8 {[%clk 0:00:55]}  Qxh2+ {[%clk 0:01:28]} 29. Ke1 {[%clk 0:00:51]}  Qg1+ {[%clk 0:01:24]} 30. Bf1 {[%clk 0:00:42]}  Nxd7 {[%clk 0:01:20]} 31. Rxd7 {[%clk 0:00:39]}  exf5 {[%clk 0:01:20]} 32. Kd2 {[%clk 0:00:18]}  Qxf1 {[%clk 0:01:16]} 33. Qxc6 {[%clk 0:00:16]}  Qf2+ {[%clk 0:01:13]} 34. Kc3 {[%clk 0:00:15]}  Qe3+ {[%clk 0:01:13]} 35. Kb2 {[%clk 0:00:15]}  Qxe4 {[%clk 0:01:12]} 36. Qxe4 {[%clk 0:00:08]}  fxe4 {[%clk 0:01:13]} 37. Nb6 {[%clk 0:00:06]}  e3 {[%clk 0:01:12]} 38. Rd1 {[%clk 0:00:06]}  e2 {[%clk 0:01:07]} 39. Re1 {[%clk 0:00:06]}  f5 {[%clk 0:01:08]} 40. c6 {[%clk 0:00:06]}  Rb8 {[%clk 0:01:08]} 0-1


[Site "https://www.chess.com"]

[Event "Titled Tuesday Blitz April 11 Early 2023"]
[White "Gheorghiu, Calin"]
[Black "Borrmann, Laurenz"]
[WhiteFideId "1200305"]
[BlackFideId "312187930"]
[WhiteElo "2223"]
[BlackElo "2312"]
[Result "0-1"]
[Round "08"]
[TimeControl "180+2"]
[Date "2023.04.11"]
[WhiteClock "0:00:02"]
[BlackClock "0:00:19"]

1. e4 {[%clk 0:03:00]}  c5 {[%clk 0:02:51]} 2. Nf3 {[%clk 0:03:00]}  e6 {[%clk 0:02:50]} 3. d4 {[%clk 0:03:00]}  cxd4 {[%clk 0:02:50]} 4. Nxd4 {[%clk 0:03:00]}  a6 {[%clk 0:02:51]} 5. Nc3 {[%clk 0:03:00]}  Qc7 {[%clk 0:02:50]} 6. Bd3 {[%clk 0:03:00]}  Nc6 {[%clk 0:02:49]} 7. Nxc6 {[%clk 0:02:58]}  bxc6 {[%clk 0:02:49]} 8. O-O {[%clk 0:02:59]}  d5 {[%clk 0:02:50]} 9. Qe2 {[%clk 0:02:58]}  Nf6 {[%clk 0:02:36]} 10. Bg5 {[%clk 0:02:54]}  Be7 {[%clk 0:02:08]} 11. Rfe1 {[%clk 0:02:34]}  O-O {[%clk 0:01:59]} 12. e5 {[%clk 0:02:19]}  Ne8 {[%clk 0:01:58]} 13. Qh5 {[%clk 0:01:57]}  g6 {[%clk 0:01:54]} 14. Qh6 {[%clk 0:01:57]}  Qd8 {[%clk 0:01:34]} 15. Bxe7 {[%clk 0:01:53]}  Qxe7 {[%clk 0:01:35]} 16. Re3 {[%clk 0:01:51]}  f5 {[%clk 0:01:33]} 17. exf6 {[%clk 0:01:47]}  Nxf6 {[%clk 0:01:30]} 18. Rg3 {[%clk 0:01:42]}  Qg7 {[%clk 0:01:24]} 19. Qe3 {[%clk 0:01:18]}  Nh5 {[%clk 0:01:16]} 20. Rg5 {[%clk 0:01:14]}  d4 {[%clk 0:01:09]} 21. Qe4 {[%clk 0:00:59]}  dxc3 {[%clk 0:01:08]} 22. bxc3 {[%clk 0:00:58]}  Nf4 {[%clk 0:01:01]} 23. Bc4 {[%clk 0:00:54]}  Qf6 {[%clk 0:00:49]} 24. Rg3 {[%clk 0:00:48]}  Qf5 {[%clk 0:00:48]} 25. Qxc6 {[%clk 0:00:47]}  Rb8 {[%clk 0:00:44]} 26. Re1 {[%clk 0:00:44]}  Bb7 {[%clk 0:00:36]} 27. Bxe6+ {[%clk 0:00:26]}  Nxe6 {[%clk 0:00:36]} 28. Qxe6+ {[%clk 0:00:26]}  Qxe6 {[%clk 0:00:36]} 29. Rxe6 {[%clk 0:00:27]}  Bd5 {[%clk 0:00:36]} 30. Re1 {[%clk 0:00:24]}  Bxa2 {[%clk 0:00:37]} 31. Rd3 {[%clk 0:00:22]}  Rbd8 {[%clk 0:00:34]} 32. f3 {[%clk 0:00:17]}  Bc4 {[%clk 0:00:33]} 33. Rde3 {[%clk 0:00:13]}  Rd2 {[%clk 0:00:32]} 34. Ra1 {[%clk 0:00:13]}  Rfd8 {[%clk 0:00:28]} 35. Re4 {[%clk 0:00:11]}  Rc8 {[%clk 0:00:24]} 36. Re7 {[%clk 0:00:03]}  Rxc2 {[%clk 0:00:24]} 37. Rd1 {[%clk 0:00:03]}  Bb5 {[%clk 0:00:21]} 38. Rd6 {[%clk 0:00:02]}  R2xc3 {[%clk 0:00:18]} 39. Ra7 {[%clk 0:00:02]}  R3c7 {[%clk 0:00:18]} 40. Rxc7 {[%clk 0:00:02]}  Rxc7 {[%clk 0:00:19]} 0-1


[Site "https://www.chess.com"]

[Event "Titled Tuesday Blitz April 11 Early 2023"]
[White "Sai Han Thiha"]
[Black "Inepton_Fermion"]
[WhiteFideId "13012290"]
[WhiteElo "1954"]
[BlackElo "2391"]
[Result "1-0"]
[Round "08"]
[TimeControl "180+2"]
[Date "2023.04.11"]
[WhiteClock "0:01:15"]
[BlackClock "0:01:25"]

1. d4 {[%clk 0:03:00]}  g6 {[%clk 0:02:59]} 2. e4 {[%clk 0:03:00]}  Bg7 {[%clk 0:03:00]} 3. c4 {[%clk 0:03:01]}  d6 {[%clk 0:02:59]} 4. Nc3 {[%clk 0:03:01]}  e5 {[%clk 0:02:57]} 5. dxe5 {[%clk 0:02:46]}  dxe5 {[%clk 0:02:58]} 6. Qxd8+ {[%clk 0:02:47]}  Kxd8 {[%clk 0:02:57]} 7. Be3 {[%clk 0:02:47]}  c6 {[%clk 0:02:57]} 8. Nf3 {[%clk 0:02:33]}  f6 {[%clk 0:02:52]} 9. Nd2 {[%clk 0:02:25]}  Bh6 {[%clk 0:02:52]} 10. Ke2 {[%clk 0:02:01]}  Kc7 {[%clk 0:02:42]} 11. Rd1 {[%clk 0:01:55]}  Be6 {[%clk 0:02:37]} 12. f3 {[%clk 0:01:52]}  Bxe3 {[%clk 0:02:37]} 13. Kxe3 {[%clk 0:01:53]}  a5 {[%clk 0:02:25]} 14. c5 {[%clk 0:01:49]}  Na6 {[%clk 0:02:22]} 15. Na4 {[%clk 0:01:34]}  Nh6 {[%clk 0:02:07]} 16. Bc4 {[%clk 0:01:33]}  Bxc4 {[%clk 0:02:06]} 17. Nxc4 {[%clk 0:01:34]}  Nf7 {[%clk 0:02:06]} 18. a3 {[%clk 0:01:21]}  Rad8 {[%clk 0:01:53]} 19. Nxa5 {[%clk 0:01:17]}  Nxc5 {[%clk 0:01:25]} 20. Nxc5 {[%clk 0:01:15]} 1-0


[Site "https://www.chess.com"]

[Event "Titled Tuesday Blitz April 11 Early 2023"]
[White "Mogirzan, Matei-Valeriu"]
[Black "Lehtosaari, Mauri"]
[WhiteFideId "1257455"]
[BlackFideId "501999"]
[WhiteElo "1733"]
[BlackElo "2515"]
[Result "0-1"]
[Round "08"]
[TimeControl "180+2"]
[Date "2023.04.11"]
[WhiteClock "0:00:04"]
[BlackClock "0:00:07"]

1. e4 {[%clk 0:03:00]}  d5 {[%clk 0:02:59]} 2. exd5 {[%clk 0:03:00]}  Qxd5 {[%clk 0:03:00]} 3. Nc3 {[%clk 0:03:01]}  Qd8 {[%clk 0:03:00]} 4. Nf3 {[%clk 0:03:00]}  Nf6 {[%clk 0:03:00]} 5. d4 {[%clk 0:03:01]}  Bg4 {[%clk 0:03:00]} 6. Bc4 {[%clk 0:02:59]}  e6 {[%clk 0:02:52]} 7. h3 {[%clk 0:02:58]}  Bxf3 {[%clk 0:02:52]} 8. Qxf3 {[%clk 0:02:58]}  c6 {[%clk 0:02:53]} 9. Be3 {[%clk 0:02:57]}  Nbd7 {[%clk 0:02:48]} 10. O-O-O {[%clk 0:02:50]}  Bb4 {[%clk 0:02:48]} 11. Ne4 {[%clk 0:02:49]}  Nxe4 {[%clk 0:02:45]} 12. Qxe4 {[%clk 0:02:50]}  Nf6 {[%clk 0:02:44]} 13. Qf3 {[%clk 0:02:49]}  Qa5 {[%clk 0:02:37]} 14. c3 {[%clk 0:02:31]}  Be7 {[%clk 0:02:34]} 15. g4 {[%clk 0:02:24]}  Nd5 {[%clk 0:02:17]} 16. Kb1 {[%clk 0:02:18]}  Qd8 {[%clk 0:01:53]} 17. Bb3 {[%clk 0:02:03]}  a5 {[%clk 0:01:44]} 18. c4 {[%clk 0:01:57]}  Nxe3 {[%clk 0:01:15]} 19. fxe3 {[%clk 0:01:44]}  a4 {[%clk 0:01:10]} 20. d5 {[%clk 0:01:10]}  axb3 {[%clk 0:01:05]} 21. dxe6 {[%clk 0:01:08]}  bxa2+ {[%clk 0:00:57]} 22. Ka1 {[%clk 0:01:07]}  O-O {[%clk 0:00:35]} 23. Rxd8 {[%clk 0:00:57]}  Bxd8 {[%clk 0:00:35]} 24. Rf1 {[%clk 0:00:50]}  Bf6 {[%clk 0:00:31]} 25. Qe4 {[%clk 0:00:21]}  fxe6 {[%clk 0:00:24]} 26. Qxe6+ {[%clk 0:00:16]}  Kh8 {[%clk 0:00:23]} 27. Rd1 {[%clk 0:00:13]}  Rfe8 {[%clk 0:00:20]} 28. Qf5 {[%clk 0:00:05]}  Rxe3 {[%clk 0:00:19]} 29. g5 {[%clk 0:00:05]}  Be5 {[%clk 0:00:11]} 30. Rf1 {[%clk 0:00:04]}  Bd6 {[%clk 0:00:07]} 31. g6 {[%clk 0:00:04]}  h6 {[%clk 0:00:06]} 32. Qc2 {[%clk 0:00:03]}  Ree8 {[%clk 0:00:07]} 33. c5 {[%clk 0:00:03]}  Be5 {[%clk 0:00:06]} 34. Re1 {[%clk 0:00:03]}  Bd4 {[%clk 0:00:05]} 35. Rd1 {[%clk 0:00:03]}  Bf6 {[%clk 0:00:05]} 36. Qb3 {[%clk 0:00:02]}  Reb8 {[%clk 0:00:04]} 37. Qf7 {[%clk 0:00:02]}  Rf8 {[%clk 0:00:04]} 38. Qe6 {[%clk 0:00:01]}  Rfe8 {[%clk 0:00:04]} 39. Qb3 {[%clk 0:00:02]}  Re2 {[%clk 0:00:04]} 40. Rc1 {[%clk 0:00:02]}  Bxb2+ {[%clk 0:00:04]} 41. Qxb2 {[%clk 0:00:02]}  Rxb2 {[%clk 0:00:04]} 42. Kxb2 {[%clk 0:00:03]}  a1=Q+ {[%clk 0:00:03]} 43. Rxa1 {[%clk 0:00:04]}  Rxa1 {[%clk 0:00:04]} 44. Kxa1 {[%clk 0:00:05]}  Kg8 {[%clk 0:00:05]} 45. Kb2 {[%clk 0:00:05]}  Kf8 {[%clk 0:00:06]} 46. Kc3 {[%clk 0:00:05]}  Ke7 {[%clk 0:00:07]} 47. Kd4 {[%clk 0:00:04]}  Ke6 {[%clk 0:00:04]} 48. Ke4 {[%clk 0:00:04]}  Kf6 {[%clk 0:00:04]} 49. h4 {[%clk 0:00:03]}  h5 {[%clk 0:00:04]} 50. Kf4 {[%clk 0:00:03]}  Kxg6 {[%clk 0:00:04]} 51. Ke5 {[%clk 0:00:04]}  Kf7 {[%clk 0:00:03]} 52. Kd6 {[%clk 0:00:04]}  g5 {[%clk 0:00:04]} 53. Kc7 {[%clk 0:00:01]}  gxh4 {[%clk 0:00:04]} 54. Kxb7 {[%clk 0:00:02]}  h3 {[%clk 0:00:05]} 55. Kxc6 {[%clk 0:00:03]}  h2 {[%clk 0:00:05]} 56. Kb7 {[%clk 0:00:04]}  h1=Q+ {[%clk 0:00:05]} 57. c6 {[%clk 0:00:04]}  Qxc6+ {[%clk 0:00:06]} 58. Kxc6 {[%clk 0:00:04]}  h4 {[%clk 0:00:07]} 0-1


[Site "https://www.chess.com"]

[Event "Titled Tuesday Blitz April 11 Early 2023"]
[White "Vivas Zamora, Fabian Ernesto"]
[Black "Sreyas Payyappat"]
[WhiteFideId "3902480"]
[BlackFideId "46674969"]
[WhiteElo "2262"]
[BlackElo "2083"]
[Result "1-0"]
[Round "08"]
[TimeControl "180+2"]
[Date "2023.04.11"]
[WhiteClock "0:00:03"]
[BlackClock "0:00:03"]

1. e4 {[%clk 0:03:00]}  c6 {[%clk 0:02:57]} 2. Nf3 {[%clk 0:03:00]}  d5 {[%clk 0:02:58]} 3. Nc3 {[%clk 0:03:00]}  dxe4 {[%clk 0:02:59]} 4. Nxe4 {[%clk 0:03:01]}  Nf6 {[%clk 0:03:00]} 5. Qe2 {[%clk 0:03:02]}  Nxe4 {[%clk 0:02:59]} 6. Qxe4 {[%clk 0:03:03]}  Nd7 {[%clk 0:03:00]} 7. Bc4 {[%clk 0:03:00]}  Nf6 {[%clk 0:03:01]} 8. Ne5 {[%clk 0:03:01]}  e6 {[%clk 0:03:01]} 9. Qe2 {[%clk 0:03:01]}  b5 {[%clk 0:02:59]} 10. Bd3 {[%clk 0:03:00]}  Qc7 {[%clk 0:02:57]} 11. a4 {[%clk 0:02:59]}  b4 {[%clk 0:02:52]} 12. b3 {[%clk 0:02:58]}  Bd6 {[%clk 0:02:51]} 13. Bb2 {[%clk 0:02:59]}  O-O {[%clk 0:02:51]} 14. O-O-O {[%clk 0:02:50]}  c5 {[%clk 0:02:49]} 15. Nc4 {[%clk 0:02:43]}  Nd5 {[%clk 0:02:31]} 16. Qh5 {[%clk 0:01:10]}  f5 {[%clk 0:02:20]} 17. g3 {[%clk 0:01:05]}  Ba6 {[%clk 0:02:07]} 18. Rde1 {[%clk 0:01:03]}  Rae8 {[%clk 0:01:54]} 19. Bxf5 {[%clk 0:00:30]}  g6 {[%clk 0:00:24]} 20. Bxe6+ {[%clk 0:00:28]}  Rxe6 {[%clk 0:00:20]} 21. Qxd5 {[%clk 0:00:28]}  Qf7 {[%clk 0:00:15]} 22. Rxe6 {[%clk 0:00:13]}  Bb7 {[%clk 0:00:15]} 23. Qxd6 {[%clk 0:00:10]}  Bxh1 {[%clk 0:00:14]} 24. Re7 {[%clk 0:00:10]}  Re8 {[%clk 0:00:10]} 25. Qe5 {[%clk 0:00:04]}  Qxe7 {[%clk 0:00:06]} 26. Qh8+ {[%clk 0:00:03]}  Kf7 {[%clk 0:00:06]} 27. Qxh7+ {[%clk 0:00:02]}  Ke6 {[%clk 0:00:06]} 28. Qxg6+ {[%clk 0:00:02]}  Kd7 {[%clk 0:00:05]} 29. Ne5+ {[%clk 0:00:03]}  Kc7 {[%clk 0:00:03]} 30. Qa6 {[%clk 0:00:03]} 1-0


[Site "https://www.chess.com"]

[Event "Titled Tuesday Blitz April 11 Early 2023"]
[White "Reprintsev, Alexander"]
[Black "Rose, Felix"]
[WhiteFideId "14100541"]
[BlackFideId "5105722"]
[WhiteElo "2211"]
[BlackElo "2039"]
[Result "1-0"]
[Round "08"]
[TimeControl "180+2"]
[Date "2023.04.11"]
[WhiteClock "0:01:08"]
[BlackClock "0:00:03"]

1. e4 {[%clk 0:02:49]}  e5 {[%clk 0:02:59]} 2. Nf3 {[%clk 0:02:48]}  Nc6 {[%clk 0:02:59]} 3. Bc4 {[%clk 0:02:48]}  Nf6 {[%clk 0:02:59]} 4. Ng5 {[%clk 0:02:48]}  d5 {[%clk 0:02:59]} 5. exd5 {[%clk 0:02:47]}  Na5 {[%clk 0:03:00]} 6. Bb5+ {[%clk 0:02:47]}  c6 {[%clk 0:03:00]} 7. dxc6 {[%clk 0:02:47]}  bxc6 {[%clk 0:03:01]} 8. Bd3 {[%clk 0:02:44]}  Nd5 {[%clk 0:02:55]} 9. h4 {[%clk 0:02:43]}  h6 {[%clk 0:02:43]} 10. Qh5 {[%clk 0:02:41]}  Qc7 {[%clk 0:02:02]} 11. Nxf7 {[%clk 0:02:16]}  Nf6 {[%clk 0:02:00]} 12. Qxe5+ {[%clk 0:02:16]}  Qxe5+ {[%clk 0:01:57]} 13. Nxe5 {[%clk 0:02:15]}  Bd6 {[%clk 0:01:55]} 14. Bg6+ {[%clk 0:02:12]}  Ke7 {[%clk 0:01:53]} 15. d4 {[%clk 0:02:12]}  Rb8 {[%clk 0:01:46]} 16. Nc3 {[%clk 0:02:10]}  Be6 {[%clk 0:01:31]} 17. O-O {[%clk 0:02:07]}  Rb4 {[%clk 0:01:14]} 18. Re1 {[%clk 0:02:01]}  Rxd4 {[%clk 0:01:07]} 19. Nf7 {[%clk 0:01:55]}  Rb8 {[%clk 0:00:54]} 20. Nxd6 {[%clk 0:01:54]}  Kxd6 {[%clk 0:00:47]} 21. Be3 {[%clk 0:01:49]}  Rxh4 {[%clk 0:00:43]} 22. Rad1+ {[%clk 0:01:48]}  Nd5 {[%clk 0:00:25]} 23. Nxd5 {[%clk 0:01:28]}  Bxd5 {[%clk 0:00:12]} 24. b3 {[%clk 0:01:24]}  Rg4 {[%clk 0:00:10]} 25. Bh5 {[%clk 0:01:15]}  Rxg2+ {[%clk 0:00:09]} 26. Kf1 {[%clk 0:01:16]}  Rh2 {[%clk 0:00:08]} 27. c4 {[%clk 0:01:16]}  Rxh5 {[%clk 0:00:07]} 28. Bf4+ {[%clk 0:01:14]}  Kd7 {[%clk 0:00:04]} 29. Bxb8 {[%clk 0:01:08]}  Rh1+ {[%clk 0:00:03]} 30. Ke2 {[%clk 0:01:08]} 1-0


[Site "https://www.chess.com"]

[Event "Titled Tuesday Blitz April 11 Early 2023"]
[White "a-z30"]
[Black "Erzhanov, Arman"]
[BlackFideId "4138821"]
[WhiteElo "2325"]
[BlackElo "2138"]
[Result "0-1"]
[Round "08"]
[TimeControl "180+2"]
[Date "2023.04.11"]
[WhiteClock "0:00:01"]
[BlackClock "0:01:33"]

1. d3 {[%clk 0:03:00]}  d6 {[%clk 0:03:00]} 2. Nf3 {[%clk 0:03:01]}  e5 {[%clk 0:03:00]} 3. g3 {[%clk 0:03:02]}  Nf6 {[%clk 0:02:59]} 4. Bg2 {[%clk 0:03:02]}  Be7 {[%clk 0:03:00]} 5. O-O {[%clk 0:03:03]}  O-O {[%clk 0:03:00]} 6. c4 {[%clk 0:03:04]}  Nbd7 {[%clk 0:03:01]} 7. Nc3 {[%clk 0:03:04]}  c6 {[%clk 0:03:01]} 8. Qc2 {[%clk 0:03:00]}  Re8 {[%clk 0:03:02]} 9. d4 {[%clk 0:02:57]}  Bf8 {[%clk 0:03:02]} 10. e4 {[%clk 0:02:54]}  Qc7 {[%clk 0:03:02]} 11. h3 {[%clk 0:02:39]}  g6 {[%clk 0:03:02]} 12. Be3 {[%clk 0:02:36]}  Bg7 {[%clk 0:03:02]} 13. Rfe1 {[%clk 0:02:35]}  a5 {[%clk 0:02:59]} 14. Rad1 {[%clk 0:02:32]}  b6 {[%clk 0:02:56]} 15. b3 {[%clk 0:02:31]}  Bb7 {[%clk 0:02:56]} 16. d5 {[%clk 0:02:30]}  cxd5 {[%clk 0:02:48]} 17. Nb5 {[%clk 0:02:28]}  Qb8 {[%clk 0:02:41]} 18. exd5 {[%clk 0:02:27]}  Ba6 {[%clk 0:02:38]} 19. a4 {[%clk 0:02:26]}  Bxb5 {[%clk 0:02:37]} 20. axb5 {[%clk 0:02:25]}  Nc5 {[%clk 0:02:36]} 21. Bxc5 {[%clk 0:02:16]}  bxc5 {[%clk 0:02:35]} 22. Nd2 {[%clk 0:02:09]}  Nd7 {[%clk 0:02:35]} 23. Ra1 {[%clk 0:02:07]}  f5 {[%clk 0:02:33]} 24. h4 {[%clk 0:01:43]}  e4 {[%clk 0:02:32]} 25. Rad1 {[%clk 0:01:38]}  Ne5 {[%clk 0:02:32]} 26. Nf1 {[%clk 0:01:16]}  Nd3 {[%clk 0:02:28]} 27. Re3 {[%clk 0:01:15]}  Bd4 {[%clk 0:02:25]} 28. Re2 {[%clk 0:01:09]}  a4 {[%clk 0:02:13]} 29. bxa4 {[%clk 0:01:08]}  Qa7 {[%clk 0:02:13]} 30. h5 {[%clk 0:01:03]}  Kf7 {[%clk 0:02:12]} 31. hxg6+ {[%clk 0:00:56]}  hxg6 {[%clk 0:02:13]} 32. Rxd3 {[%clk 0:00:54]}  exd3 {[%clk 0:02:13]} 33. Qxd3 {[%clk 0:00:54]}  Qxa4 {[%clk 0:02:11]} 34. Qd2 {[%clk 0:00:29]}  Qxc4 {[%clk 0:02:00]} 35. Ne3 {[%clk 0:00:14]}  Qxb5 {[%clk 0:01:54]} 36. Nxf5 {[%clk 0:00:05]}  Ra1+ {[%clk 0:01:43]} 37. Kh2 {[%clk 0:00:04]}  Qxe2 {[%clk 0:01:33]} 38. Nxd6+ {[%clk 0:00:03]}  Kg8 {[%clk 0:01:34]} 39. Qg5 {[%clk 0:00:02]}  Qh5+ {[%clk 0:01:34]} 40. Qxh5 {[%clk 0:00:01]}  gxh5 {[%clk 0:01:35]} 41. Nxe8 {[%clk 0:00:02]}  Bxf2 {[%clk 0:01:33]} 42. d6 {[%clk 0:00:01]}  Rd1 {[%clk 0:01:33]} 0-1


[Site "https://www.chess.com"]

[Event "Titled Tuesday Blitz April 11 Early 2023"]
[White "Jimenez Jimenez, Leandro"]
[Black "Ruge, Edison"]
[WhiteFideId "6415253"]
[BlackFideId "4401000"]
[WhiteElo "2263"]
[BlackElo "2175"]
[Result "1-0"]
[Round "08"]
[TimeControl "180+2"]
[Date "2023.04.11"]
[WhiteClock "0:01:07"]
[BlackClock "0:02:06"]

1. d4 {[%clk 0:03:00]}  d6 {[%clk 0:02:57]} 2. c4 {[%clk 0:03:01]}  e5 {[%clk 0:02:51]} 3. Nf3 {[%clk 0:02:59]}  exd4 {[%clk 0:02:49]} 4. Nxd4 {[%clk 0:02:59]}  Nf6 {[%clk 0:02:50]} 5. g3 {[%clk 0:02:59]}  Be7 {[%clk 0:02:50]} 6. Bg2 {[%clk 0:02:58]}  c6 {[%clk 0:02:51]} 7. O-O {[%clk 0:02:58]}  O-O {[%clk 0:02:52]} 8. Nc3 {[%clk 0:02:58]}  Nbd7 {[%clk 0:02:51]} 9. a4 {[%clk 0:02:45]}  Ne5 {[%clk 0:02:47]} 10. b3 {[%clk 0:02:44]}  Re8 {[%clk 0:02:47]} 11. a5 {[%clk 0:02:44]}  a6 {[%clk 0:02:44]} 12. Bb2 {[%clk 0:02:35]}  Ng6 {[%clk 0:02:43]} 13. h3 {[%clk 0:02:31]}  h5 {[%clk 0:02:38]} 14. e3 {[%clk 0:02:24]}  h4 {[%clk 0:02:38]} 15. g4 {[%clk 0:02:25]}  Qc7 {[%clk 0:02:32]} 16. f4 {[%clk 0:01:30]}  Nd7 {[%clk 0:02:29]} 17. Nf5 {[%clk 0:01:25]}  Bf8 {[%clk 0:02:28]} 18. Ne4 {[%clk 0:01:22]}  Nc5 {[%clk 0:02:21]} 19. Nh6+ {[%clk 0:01:08]}  gxh6 {[%clk 0:02:06]} 20. Nf6+ {[%clk 0:01:07]} 1-0


[Site "https://www.chess.com"]